bitfinex/quotes_BTCUSD_20240718
["timestamp","ask_amount","ask_price","bid_price","bid_amount"]
[1721312635576,0.12302182,64367.0,64362.0,0.15880422]
[1721312635577,0.01736304,64363.0,64362.0,0.15880422]
[1721312636070,0.04584703,64365.0,64362.0,0.15880422]
[1721312636362,0.09169406,64368.0,64364.0,0.310732]
[1721312636363,0.04584703,64368.0,64364.0,0.310732]
[1721312636596,0.04584703,64376.0,64370.0,0.155351]
[1721312636834,0.01736304,64374.0,64371.0,0.20098864]
[1721312637089,0.01736304,64374.0,64371.0,0.20538649]
[1721312637316,0.01736304,64376.0,64371.0,0.20538649]
[1721312637548,0.01736304,64375.0,64371.0,0.20538649]
[1721312637786,0.01736304,64374.0,64372.0,0.06714555]
[1721312638008,0.01736304,64374.0,64371.0,0.20538649]
[1721312638009,0.01736304,64374.0,64373.0,0.15438174]
[1721312638239,0.01736304,64374.0,64373.0,0.15877412]
[1721312639895,0.02336304,64374.0,64373.0,0.15877412]
[1721312640139,0.48938904,64374.0,64373.0,0.00439238]
[1721312640386,1.01143937,64374.0,64373.0,0.00439238]
[1721312640632,1.01143937,64374.0,64372.0,0.001]
[1721312640633,0.48339604,64373.0,64372.0,0.001]
[1721312640913,1.10477404,64373.0,64372.0,0.001]
[1721312641158,1.46691929,64373.0,64372.0,0.001]
[1721312641405,1.17732378,64373.0,64372.0,0.001]
[1721312641639,1.50347679,64373.0,64372.0,0.001]
[1721312641868,1.50347679,64373.0,64362.0,0.000913]
[1721312641869,0.01736304,64363.0,64362.0,0.000913]
[1721312642099,0.06320715,64363.0,64362.0,0.000913]
[1721312642354,0.01736304,64363.0,64362.0,0.000913]
[1721312642595,0.14080112,64363.0,64362.0,0.000913]
[1721312642840,1.50970664,64363.0,64362.0,0.000913]
[1721312643071,1.62431654,64363.0,64362.0,0.000913]
[1721312643588,1.53389236,64363.0,64362.0,0.000913]
[1721312643830,1.50981223,64363.0,64362.0,0.000913]
[1721312645024,1.54566241,64363.0,64362.0,0.000913]
[1721312645514,1.50981223,64363.0,64362.0,0.004913]
[1721312646488,1.32153601,64363.0,64362.0,0.004913]
[1721312646721,1.63173666,64363.0,64362.0,0.005913]
[1721312646968,1.54140511,64363.0,64362.0,0.005913]
[1721312647974,1.54140511,64363.0,64362.0,0.001913]
[1721312648439,2.00617632,64363.0,64362.0,0.00133879]
[1721312648687,2.00617632,64363.0,64362.0,0.00233879]
[1721312648688,2.01217632,64363.0,64362.0,0.00233879]
[1721312649392,1.67610176,64363.0,64362.0,0.00233879]
[1721312649621,2.01088327,64363.0,64362.0,0.00233879]
[1721312649869,1.67610176,64363.0,64362.0,0.00233879]
[1721312650090,1.9940219,64363.0,64362.0,0.00233879]
[1721312650355,1.85650404,64363.0,64362.0,0.00233879]
[1721312650602,1.82272215,64363.0,64362.0,0.00233879]
[1721312650831,0.01736304,64347.0,64343.0,0.155416]
[1721312651101,0.01736304,64347.0,64344.0,0.15438174]
[1721312651333,0.17276504,64350.0,64344.0,0.15886332]
[1721312651562,0.01736304,64349.0,64344.0,0.15886332]
[1721312651838,0.0458308,64354.0,64348.0,0.155403]
[1721312652064,0.01736304,64352.0,64349.0,0.15438174]
[1721312652303,0.01736304,64350.0,64349.0,0.15885112]
[1721312653237,0.02000704,64353.0,64349.0,0.15885112]
[1721312653463,0.01736304,64352.0,64349.0,0.15885112]
[1721312653773,0.01736304,64351.0,64349.0,0.15885112]
[1721312653909,0.001,64350.0,64349.0,0.16585112]
[1721312654163,0.001,64350.0,64349.0,0.72744916]
[1721312654390,0.001,64350.0,64349.0,0.69725812]
[1721312655577,0.01836304,64350.0,64349.0,0.69725812]
[1721312655814,0.01836304,64350.0,64349.0,0.32125312]
[1721312656044,0.001,64350.0,64349.0,0.32125312]
[1721312656302,0.01736304,64352.0,64349.0,0.15885112]
[1721312656778,0.02000704,64356.0,64349.0,0.41596226]
[1721312657014,0.01736304,64355.0,64350.0,0.1554]
[1721312657220,0.01736304,64355.0,64351.0,0.15438174]
[1721312657523,0.01736304,64355.0,64351.0,0.15884448]
[1721312657778,0.01736304,64353.0,64351.0,0.15884448]
[1721312658522,0.01736304,64352.0,64351.0,0.15884448]
[1721312659001,0.01736304,64353.0,64351.0,0.15884448]
[1721312659233,0.01736304,64354.0,64352.0,0.03142465]
[1721312659470,0.01736304,64354.0,64351.0,0.15884448]
[1721312659703,0.01736304,64354.0,64353.0,0.00445741]
[1721312659936,0.01736304,64354.0,64353.0,0.15438174]
[1721312660215,0.01736304,64356.0,64353.0,0.15438174]
[1721312660462,0.01736304,64356.0,64354.0,0.15438174]
[1721312660719,0.01736304,64356.0,64354.0,0.21688496]
[1721312660980,0.04583099,64357.0,64355.0,0.00445194]
[1721312661244,0.04583099,64357.0,64356.0,0.15438174]
[1721312661483,0.155371,64362.0,64356.0,0.15438174]
[1721312661484,0.04583099,64366.0,64356.0,0.2501187]
[1721312661723,0.002644,64376.0,64372.0,0.155345]
[1721312661959,0.0458486,64376.0,64372.0,0.15438174]
[1721312662222,0.0458486,64376.0,64373.0,0.15878005]
[1721312663154,0.0458486,64376.0,64373.0,0.73285685]
[1721312663375,0.06321164,64379.0,64373.0,0.73285685]
[1721312663881,0.12302339,64380.0,64373.0,0.73285685]
[1721312664105,0.07717479,64380.0,64373.0,1.04354585]
[1721312664353,0.07717479,64380.0,64373.0,0.93550205]
[1721312664354,0.09453783,64380.0,64373.0,0.93550205]
[1721312664622,0.01736304,64377.0,64373.0,0.62481305]
[1721312665208,0.07717479,64380.0,64373.0,0.93550205]
[1721312666675,0.002644,64386.0,64373.0,1.01190205]
[1721312666917,0.002644,64386.0,64373.0,1.32259105]
[1721312667209,0.002644,64386.0,64385.0,0.924777]
[1721312667448,0.46304871,64394.0,64393.0,0.77648]
[1721312667683,0.00083,64399.0,64398.0,0.465852]
[1721312667913,0.00083,64399.0,64398.0,0.99282511]
[1721312668149,0.00083,64399.0,64398.0,0.9973124]
[1721312669389,0.10846087,64410.0,64398.0,0.9973124]
[1721312669390,0.04576087,64410.0,64399.0,0.0627]
[1721312669667,0.01736304,64419.0,64399.0,0.0627]
[1721312669668,0.046688,64425.0,64417.0,0.155238]
[1721312669890,0.046688,64425.0,64417.0,0.94609754]
[1721312669891,0.00084,64425.0,64417.0,0.94609754]
[1721312670383,0.01736304,64419.0,64417.0,0.00481054]
[1721312670614,0.01736304,64422.0,64417.0,0.46966928]
[1721312670845,0.01736304,64422.0,64417.0,0.62009674]
[1721312671079,0.01736304,64422.0,64417.0,0.62490289]
[1721312671317,0.01736304,64422.0,64417.0,0.93537989]
[1721312671558,0.00084,64425.0,64417.0,1.37044398]
[1721312671823,0.00819,64418.0,64417.0,1.37044398]
[1721312672069,0.00801,64418.0,64417.0,1.37044398]
[1721312672302,0.00781,64418.0,64417.0,1.37044398]
[1721312673660,0.00781,64418.0,64417.0,1.05996698]
[1721312674187,0.00781,64418.0,64417.0,0.28377498]
[1721312674422,0.00781,64418.0,64417.0,0.43901298]
[1721312675415,0.00781,64418.0,64417.0,0.74948998]
[1721312675886,0.00781,64418.0,64417.0,0.76248998]
[1721312675887,0.00881,64418.0,64417.0,0.76248998]
[1721312676119,0.02617304,64418.0,64417.0,0.30177498]
[1721312676369,0.02617304,64418.0,64417.0,0.02280615]
[1721312676856,0.00881,64418.0,64417.0,0.17304415]
[1721312677088,0.00881,64418.0,64417.0,0.01780615]
[1721312677320,0.00881,64418.0,64417.0,0.18304415]
[1721312677573,0.00781,64418.0,64417.0,0.16804415]
[1721312677819,0.00781,64418.0,64417.0,0.16004415]
[1721312678305,0.00781,64418.0,64417.0,0.70300541]
[1721312678552,0.00781,64418.0,64417.0,1.01348241]
[1721312679262,0.00781,64418.0,64417.0,1.32395941]
[1721312679749,0.00781,64418.0,64417.0,1.38915941]
[1721312679980,0.00781,64418.0,64417.0,1.39015941]
[1721312680215,0.00781,64418.0,64417.0,1.32495941]
[1721312680986,0.00881,64418.0,64417.0,1.02248241]
[1721312681506,0.00781,64418.0,64417.0,1.01348241]
[1721312682002,0.00781,64418.0,64417.0,1.01748241]
[1721312682230,0.00781,64418.0,64417.0,1.02648241]
[1721312682688,0.00781,64418.0,64417.0,1.33695941]
[1721312685009,0.00781,64418.0,64417.0,1.33295941]
[1721312685961,0.00881,64418.0,64417.0,1.34195941]
[1721312686882,0.00881,64418.0,64417.0,1.33295941]
[1721312687337,0.00881,64418.0,64417.0,0.16818789]
[1721312687338,0.02617304,64418.0,64417.0,0.16818789]
[1721312687569,0.02617304,64418.0,64417.0,0.01880615]
[1721312687791,0.09147304,64418.0,64417.0,0.01880615]
[1721312688010,0.16864783,64418.0,64417.0,0.014]
[1721312688242,0.16864783,64418.0,64417.0,0.01377241]
[1721312688716,0.00881,64418.0,64417.0,0.65077089]
[1721312688936,0.00881,64418.0,64417.0,0.96124789]
[1721312689359,0.00881,64418.0,64417.0,1.34852489]
[1721312689815,0.00981,64418.0,64417.0,2.04023885]
[1721312690022,0.00781,64418.0,64417.0,1.98960189]
[1721312690235,0.00781,64418.0,64417.0,2.02223885]
[1721312690664,0.00781,64418.0,64417.0,2.03123885]
[1721312690867,0.00084,64425.0,64424.0,1.08655]
[1721312691076,0.00084,64425.0,64424.0,1.66179624]
[1721312691278,0.00084,64425.0,64424.0,1.66654264]
[1721312692577,0.00084,64425.0,64424.0,1.61084264]
[1721312693360,0.00084,64425.0,64424.0,1.38864264]
[1721312694186,0.00084,64425.0,64424.0,1.40264264]
[1721312694820,0.011014,64438.0,64434.0,0.079]
[1721312695027,0.00837,64438.0,64437.0,1.15253174]
[1721312695236,0.00837,64438.0,64437.0,1.77799859]
[1721312695449,0.00837,64438.0,64437.0,1.82535093]
[1721312695672,0.00837,64438.0,64437.0,1.44131754]
[1721312695955,0.00837,64438.0,64437.0,0.77900816]
[1721312696119,0.00837,64438.0,64437.0,1.08938816]
[1721312696727,0.00837,64438.0,64437.0,0.79300816]
[1721312697214,0.00837,64438.0,64437.0,1.10338816]
[1721312697659,0.02573304,64438.0,64437.0,0.79300816]
[1721312698074,0.00837,64438.0,64437.0,0.79300816]
[1721312698235,0.02573304,64438.0,64437.0,0.32743816]
[1721312698442,0.02573304,64438.0,64437.0,0.18008859]
[1721312698663,0.02573304,64438.0,64437.0,0.33527859]
[1721312699474,0.55439504,64438.0,64437.0,0.02570685]
[1721312699794,0.08883304,64438.0,64437.0,0.02570685]
[1721312699980,0.08883304,64438.0,64437.0,0.029]
[1721312700202,0.24402004,64438.0,64437.0,0.029]
[1721312700421,0.86477004,64438.0,64437.0,0.029]
[1721312700656,0.08883304,64438.0,64437.0,0.029]
[1721312700880,0.08883304,64438.0,64437.0,0.021]
[1721312701083,0.01736304,64434.0,64432.0,0.1552]
[1721312701389,0.09453783,64433.0,64432.0,0.30958174]
[1721312701590,0.09453783,64433.0,64432.0,0.40262281]
[1721312701791,0.09453783,64433.0,64432.0,0.09304107]
[1721312701958,0.01736304,64430.0,64429.0,0.155209]
[1721312702114,0.09453783,64433.0,64430.0,0.155207]
[1721312702342,0.01736304,64430.0,64429.0,0.30959074]
[1721312703010,0.01736304,64430.0,64429.0,0.15438174]
[1721312703220,0.01736304,64430.0,64418.0,0.155236]
[1721312703221,0.01736304,64419.0,64418.0,0.155236]
[1721312703432,0.0657,64423.0,64422.0,0.155226]
[1721312703688,0.08306304,64423.0,64422.0,0.62005974]
[1721312703895,0.08306304,64423.0,64422.0,0.30960774]
[1721312704292,0.08306304,64423.0,64422.0,0.24743521]
[1721312704980,0.0657,64423.0,64422.0,0.40266121]
[1721312705199,0.01736304,64427.0,64423.0,0.155223]
[1721312705413,0.01736304,64427.0,64424.0,0.15438174]
[1721312705869,0.0791,64440.0,64437.0,0.46557]
[1721312706129,0.07255,64441.0,64437.0,0.30957174]
[1721312706367,0.08991304,64441.0,64437.0,0.30957174]
[1721312706579,0.07255,64441.0,64437.0,0.61995174]
[1721312706791,0.00835,64441.0,64437.0,0.61995174]
[1721312706986,0.00835,64441.0,64437.0,0.93033174]
[1721312707106,0.00835,64441.0,64437.0,1.05440341]
[1721312707963,0.02571304,64441.0,64437.0,1.05440341]
[1721312708192,0.02573304,64439.0,64437.0,1.05440341]
[1721312708659,0.00837,64439.0,64437.0,1.05440341]
[1721312709105,0.02573304,64439.0,64437.0,1.05440341]
[1721312709338,0.00837,64439.0,64437.0,1.05440341]
[1721312709793,0.01736304,64437.0,64433.0,0.310398]
[1721312710025,0.01736304,64437.0,64436.0,0.155192]
[1721312710449,0.07327,64438.0,64437.0,0.46557]
[1721312710450,0.00837,64438.0,64437.0,0.46557]
[1721312710664,0.00837,64438.0,64437.0,1.02336691]
[1721312710874,0.00937,64438.0,64437.0,1.02336691]
[1721312711078,0.00937,64438.0,64437.0,1.33374691]
[1721312711595,0.00837,64438.0,64437.0,2.06572691]
[1721312711827,0.00837,64438.0,64437.0,1.75534691]
[1721312712723,0.00837,64438.0,64437.0,1.61154691]
[1721312712942,0.00837,64438.0,64437.0,1.33374691]
[1721312713163,0.00837,64438.0,64437.0,1.02758379]
[1721312715233,0.00837,64438.0,64437.0,1.03658379]
[1721312715844,0.00837,64438.0,64437.0,1.04558379]
[1721312716055,0.00837,64438.0,64437.0,1.03658379]
[1721312716263,0.00837,64438.0,64437.0,1.04358379]
[1721312717100,0.02573304,64438.0,64437.0,1.04358379]
[1721312717331,0.00837,64438.0,64437.0,1.04358379]
[1721312718210,0.00837,64438.0,64437.0,1.03458379]
[1721312718841,0.02573304,64438.0,64437.0,1.03458379]
[1721312719508,0.00837,64438.0,64437.0,1.03458379]
[1721312719708,0.00837,64438.0,64437.0,1.04258379]
[1721312721874,0.02573304,64438.0,64437.0,1.04258379]
[1721312722298,0.02073304,64438.0,64437.0,1.04258379]
[1721312722739,0.00337,64438.0,64437.0,1.04258379]
[1721312722973,0.02073304,64438.0,64437.0,1.04258379]
[1721312723230,0.25232004,64438.0,64437.0,0.01921688]
[1721312723458,0.25232004,64438.0,64437.0,0.015]
[1721312723688,0.56269504,64438.0,64437.0,0.01920608]
[1721312723908,0.25232004,64438.0,64437.0,0.01920608]
[1721312724130,0.09713304,64438.0,64437.0,0.015]
[1721312724360,0.33213883,64438.0,64437.0,0.015]
[1721312724565,0.32949483,64438.0,64437.0,0.015]
[1721312725405,0.17430783,64438.0,64437.0,0.015]
[1721312725622,0.09713304,64438.0,64437.0,0.06193552]
[1721312726278,0.09713304,64438.0,64437.0,0.05393552]
[1721312726781,0.09713304,64438.0,64437.0,0.05693552]
[1721312727205,0.09713304,64438.0,64437.0,0.04993552]
[1721312727657,0.09713304,64438.0,64437.0,0.00720608]
[1721312728092,0.09713304,64438.0,64437.0,0.003]
[1721312728314,0.17430783,64438.0,64437.0,0.004]
[1721312728773,0.32949483,64438.0,64437.0,0.004]
[1721312729411,0.37530543,64438.0,64437.0,0.004]
[1721312729625,0.22011843,64438.0,64437.0,0.004]
[1721312729848,0.17430783,64438.0,64437.0,0.004]
[1721312730288,0.37530543,64438.0,64437.0,0.00821454]
[1721312730555,0.32949483,64438.0,64437.0,0.004]
[1721312730978,0.37533912,64438.0,64437.0,0.004]
[1721312731213,0.12561429,64438.0,64437.0,0.004]
[1721312731437,0.00337,64438.0,64437.0,0.62395174]
[1721312731674,0.00337,64438.0,64437.0,1.06877005]
[1721312732390,0.00337,64438.0,64437.0,1.37915005]
[1721312733956,0.00337,64438.0,64437.0,1.68953005]
[1721312735152,0.00337,64438.0,64437.0,1.68653005]
[1721312735369,0.00337,64438.0,64437.0,1.69553005]
[1721312735593,0.00337,64438.0,64437.0,1.72816701]
[1721312735813,0.00337,64438.0,64437.0,1.83171587]
[1721312736260,0.00337,64438.0,64437.0,1.69453005]
[1721312736700,0.00337,64438.0,64437.0,1.70353005]
[1721312736934,0.00337,64438.0,64437.0,1.39315005]
[1721312737819,0.00337,64438.0,64437.0,1.08277005]
[1721312740241,0.00337,64438.0,64437.0,1.08368305]
[1721312742061,0.00337,64438.0,64437.0,0.77330305]
[1721312742481,0.02073304,64438.0,64437.0,0.46292305]
[1721312742692,0.02073304,64438.0,64437.0,0.02312754]
[1721312743317,0.00337,64438.0,64437.0,0.02312754]
[1721312743551,0.00337,64438.0,64437.0,0.95345928]
[1721312744405,0.00337,64438.0,64437.0,1.40693928]
[1721312744637,0.00337,64438.0,64437.0,1.85322124]
[1721312744862,0.00837,64461.0,64443.0,1.11886496]
[1721312745079,0.00837,64461.0,64443.0,2.1352592]
[1721312745291,0.00837,64461.0,64443.0,2.13943655]
[1721312746843,0.10290783,64461.0,64443.0,2.14427493]
[1721312747091,0.01736304,64452.0,64443.0,2.10679959]
[1721312747304,0.08196304,64452.0,64443.0,2.10679959]
[1721312747522,0.07717479,64454.0,64443.0,2.00353459]
[1721312747958,0.07717479,64454.0,64443.0,2.10625834]
[1721312748186,0.0797,64447.0,64443.0,1.57370734]
[1721312748413,0.0797,64447.0,64443.0,1.07263259]
[1721312748646,0.07717479,64446.0,64443.0,1.07263259]
[1721312749357,0.07717479,64446.0,64443.0,1.08563259]
[1721312749566,0.09087,64451.0,64443.0,1.08563259]
[1721312749830,0.09087,64451.0,64443.0,1.39598359]
[1721312749831,0.00837,64451.0,64443.0,1.39598359]
[1721312750074,0.00837,64451.0,64443.0,1.08563259]
[1721312750276,0.00837,64451.0,64443.0,1.39598359]
[1721312750509,0.00837,64451.0,64443.0,1.08563259]
[1721312750727,0.01736304,64448.0,64443.0,1.08563259]
[1721312751161,0.01736304,64446.0,64443.0,1.08563259]
[1721312751402,0.01736304,64450.0,64443.0,1.08563259]
[1721312752072,0.00837,64451.0,64443.0,1.08563259]
[1721312753829,0.01736304,64448.0,64443.0,1.08563259]
[1721312755711,0.01736304,64450.0,64443.0,1.08563259]
[1721312755923,0.00837,64451.0,64443.0,1.08563259]
[1721312756594,0.00837,64451.0,64443.0,1.39598359]
[1721312758338,0.00837,64451.0,64443.0,1.42862055]
[1721312758541,0.00837,64451.0,64443.0,1.57512055]
[1721312759144,0.00837,64451.0,64443.0,1.54248359]
[1721312759585,0.00837,64451.0,64443.0,1.64453062]
[1721312759799,0.00837,64451.0,64443.0,1.64453031]
[1721312760013,0.00837,64451.0,64443.0,1.54248359]
[1721312760237,0.00837,64451.0,64443.0,1.67723439]
[1721312760455,0.00837,64451.0,64443.0,1.49809743]
[1721312760679,0.01736304,64450.0,64443.0,1.39598359]
[1721312760887,0.00837,64451.0,64443.0,1.39598359]
[1721312763953,0.01736304,64450.0,64443.0,1.39598359]
[1721312764160,0.00837,64451.0,64443.0,1.39598359]
[1721312764805,0.02573304,64449.0,64443.0,1.39598359]
[1721312765070,0.01736304,64448.0,64443.0,1.39598359]
[1721312765282,0.08863304,64444.0,64443.0,0.77528159]
[1721312765498,0.07127,64444.0,64443.0,0.77528159]
[1721312766154,0.00837,64444.0,64443.0,1.39598359]
[1721312766375,0.00837,64444.0,64443.0,1.08563259]
[1721312766611,0.00837,64444.0,64443.0,1.39598359]
[1721312768183,0.00837,64444.0,64443.0,1.53688359]
[1721312771602,0.00837,64444.0,64443.0,1.39689659]
[1721312774069,0.00837,64444.0,64443.0,1.08654559]
[1721312774486,0.00837,64444.0,64443.0,1.39689659]
[1721312776432,0.00837,64444.0,64443.0,1.49867493]
[1721312776650,0.00837,64444.0,64443.0,1.39689659]
[1721312777789,0.00837,64444.0,64443.0,1.49827782]
[1721312778220,0.00837,64444.0,64443.0,1.39689659]
[1721312778424,0.00837,64444.0,64443.0,1.49827783]
[1721312779493,0.00837,64444.0,64443.0,1.18792683]
[1721312779922,0.00837,64444.0,64443.0,1.49835457]
[1721312781240,0.00837,64444.0,64443.0,1.53099153]
[1721312781453,0.00837,64444.0,64443.0,1.49835457]
[1721312783002,0.00837,64444.0,64443.0,1.39689659]
[1721312783212,0.00837,64444.0,64443.0,1.49774071]
[1721312784069,0.00837,64444.0,64443.0,1.80809171]
[1721312784746,0.00837,64444.0,64443.0,1.49774071]
[1721312785833,0.00837,64444.0,64443.0,1.80809171]
[1721312786046,0.00837,64444.0,64443.0,1.80791486]
[1721312786467,0.00837,64444.0,64443.0,1.70724759]
[1721312786693,0.00837,64444.0,64443.0,1.49756504]
[1721312787162,0.00837,64444.0,64443.0,1.49740781]
[1721312789335,0.00837,64444.0,64443.0,1.49653488]
[1721312792422,0.00837,64444.0,64443.0,1.49650502]
[1721312795526,0.00837,64444.0,64443.0,1.49646077]
[1721312795980,0.00837,64444.0,64443.0,1.49648295]
[1721312796428,0.00837,64444.0,64443.0,1.39689659]
[1721312796654,0.00837,64444.0,64443.0,1.49648397]
[1721312798581,0.00837,64444.0,64443.0,1.49631513]
[1721312800321,0.00837,64444.0,64443.0,1.90320309]
[1721312800552,0.046127,64458.0,64443.0,1.90320309]
[1721312800553,0.00834,64460.0,64454.0,0.03263696]
[1721312800771,0.00834,64460.0,64458.0,1.166676]
[1721312801010,0.00834,64460.0,64459.0,0.88702954]
[1721312801244,0.00834,64460.0,64459.0,1.51217273]
[1721312801663,0.00834,64460.0,64459.0,1.51186425]
[1721312801876,0.00834,64460.0,64459.0,1.82059556]
[1721312803657,0.00834,64460.0,64459.0,1.7214855]
[1721312803888,0.00834,64460.0,64459.0,2.0948595]
[1721312804120,0.00834,64460.0,64459.0,2.19426244]
[1721312804772,0.00834,64460.0,64459.0,2.13161768]
[1721312805232,0.00834,64460.0,64459.0,2.0317595]
[1721312806981,0.00834,64460.0,64459.0,2.06439646]
[1721312807209,0.00834,64460.0,64459.0,2.47412548]
[1721312807487,0.00834,64460.0,64459.0,2.48812474]
[1721312807927,0.00834,64460.0,64459.0,2.48815744]
[1721312808157,0.00834,64460.0,64459.0,2.47415744]
[1721312809675,0.00834,64460.0,64459.0,2.48816391]
[1721312809881,0.00834,64460.0,64459.0,2.0457595]
[1721312810101,0.00834,64460.0,64459.0,2.0317595]
[1721312810531,0.00834,64460.0,64459.0,2.0457595]
[1721312811605,0.00834,64460.0,64459.0,2.0317595]
[1721312811823,0.00834,64460.0,64459.0,2.0457595]
[1721312812047,0.00834,64460.0,64459.0,2.0597595]
[1721312812746,0.00834,64460.0,64459.0,2.0737595]
[1721312813396,0.00834,64460.0,64459.0,1.7634855]
[1721312816068,0.00834,64460.0,64459.0,1.4532115]
[1721312816747,0.00834,64460.0,64459.0,0.3553265]
[1721312816748,0.16700304,64460.0,64459.0,0.3553265]
[1721312816961,0.16700304,64460.0,64459.0,0.6566635]
[1721312816962,0.00834,64460.0,64459.0,0.6566635]
[1721312817178,0.00834,64460.0,64459.0,1.90032246]
[1721312817397,0.00834,64460.0,64459.0,2.31005694]
[1721312817609,0.00834,64460.0,64459.0,2.29441998]
[1721312818296,0.00834,64460.0,64459.0,2.22931998]
[1721312818509,0.00834,64460.0,64459.0,2.22031998]
[1721312819792,0.00834,64460.0,64459.0,2.21231998]
[1721312820240,0.00834,64460.0,64459.0,2.21290554]
[1721312820491,0.00834,64460.0,64459.0,2.23390554]
[1721312820727,0.00834,64460.0,64459.0,2.2565425]
[1721312821137,0.00834,64460.0,64459.0,2.2705425]
[1721312821349,0.00834,64460.0,64459.0,2.2595425]
[1721312821562,0.00834,64460.0,64459.0,2.5698165]
[1721312821770,0.00837,64461.0,64460.0,1.42884696]
[1721312822012,0.00834,64464.0,64463.0,0.80827396]
[1721312822234,0.00834,64464.0,64463.0,2.16916674]
[1721312822456,0.00834,64464.0,64463.0,2.07309936]
[1721312822686,0.00834,64464.0,64463.0,2.17334488]
[1721312823240,0.00834,64464.0,64463.0,2.17334505]
[1721312823464,0.00834,64464.0,64463.0,2.20878618]
[1721312825106,0.00834,64464.0,64463.0,2.17614922]
[1721312825810,0.00834,64464.0,64463.0,2.19017198]
[1721312826286,0.00834,64464.0,64463.0,1.49396198]
[1721312826518,0.00834,64464.0,64463.0,1.70394853]
[1721312827267,0.00834,64464.0,64463.0,1.80410832]
[1721312827983,0.00834,64464.0,64463.0,1.79010832]
[1721312828217,0.00834,64464.0,64463.0,1.91554528]
[1721312828451,0.00834,64464.0,64463.0,1.96724528]
[1721312828687,0.00834,64464.0,64463.0,1.93460832]
[1721312828915,0.00834,64464.0,64463.0,1.94839189]
[1721312829108,0.00834,64464.0,64463.0,1.88269189]
[1721312830040,0.00834,64464.0,64463.0,1.91532885]
[1721312830297,0.00834,64464.0,64463.0,1.92932885]
[1721312831067,0.066,64475.0,64463.0,1.92932885]
[1721312831068,0.0753,64478.0,64463.0,2.25358385]
[1721312831334,0.01736304,64484.0,64463.0,2.25358385]
[1721312831335,0.0615,64479.0,64478.0,0.465274]
[1721312831598,0.0615,64479.0,64478.0,1.24002174]
[1721312831836,0.0615,64479.0,64478.0,1.58622391]
[1721312832074,0.0615,64479.0,64478.0,1.59014589]
[1721312832804,0.0615,64479.0,64478.0,1.59814589]
[1721312833999,0.0615,64479.0,64478.0,1.61014589]
[1721312834726,0.07886304,64479.0,64478.0,1.29996289]
[1721312834957,0.07886304,64479.0,64478.0,0.76757989]
[1721312835173,0.07886304,64479.0,64478.0,1.07776289]
[1721312835416,0.0615,64479.0,64478.0,1.07776289]
[1721312835875,0.0615,64479.0,64478.0,1.29996289]
[1721312836350,0.07886304,64479.0,64478.0,1.29996289]
[1721312836587,0.07886304,64479.0,64478.0,0.98977989]
[1721312836817,0.07886304,64479.0,64478.0,0.96977989]
[1721312837045,0.07886304,64479.0,64478.0,0.74757989]
[1721312837288,0.15496304,64479.0,64478.0,0.74757989]
[1721312837532,0.15496304,64479.0,64478.0,0.75957989]
[1721312838007,0.1376,64479.0,64478.0,1.08276289]
[1721312838235,0.1376,64479.0,64478.0,1.30496289]
[1721312838991,0.15496304,64479.0,64478.0,1.29196289]
[1721312839132,0.15496304,64479.0,64478.0,0.98177989]
[1721312839578,0.15496304,64479.0,64478.0,0.99077989]
[1721312839784,0.15496304,64479.0,64478.0,1.30096289]
[1721312840805,0.15496304,64479.0,64478.0,0.99077989]
[1721312841000,0.15496304,64479.0,64478.0,0.75657989]
[1721312841511,0.15496304,64479.0,64478.0,0.76457989]
[1721312841680,0.15496304,64479.0,64467.0,0.062116]
[1721312841681,0.465346,64468.0,64467.0,0.062116]
[1721312841927,0.74772374,64468.0,64467.0,0.062116]
[1721312842191,0.74772374,64468.0,64451.0,0.46304871]
[1721312842192,0.09606304,64452.0,64451.0,0.46304871]
[1721312842404,0.15916304,64452.0,64451.0,0.69476802]
[1721312842639,0.15916304,64452.0,64451.0,0.23171931]
[1721312843990,0.15916304,64452.0,64451.0,0.15438174]
[1721312846859,0.31431704,64452.0,64451.0,0.15438174]
[1721312847334,0.01736304,64444.0,64443.0,0.000913]
[1721312847569,0.15916304,64444.0,64443.0,0.15529474]
[1721312847803,0.15916304,64444.0,64443.0,0.18634291]
[1721312848031,0.62468204,64444.0,64443.0,0.000913]
[1721312848485,1.24537404,64444.0,64443.0,0.000913]
[1721312848778,1.24537404,64444.0,64424.0,0.062156]
[1721312848779,0.93510004,64438.0,64424.0,0.062156]
[1721312849053,1.32264983,64438.0,64424.0,0.062156]
[1721312849305,1.32264983,64438.0,64418.0,0.46304871]
[1721312849306,1.41642842,64438.0,64418.0,0.46304871]
[1721312849536,1.36853417,64438.0,64418.0,0.61828371]
[1721312850242,1.32364983,64438.0,64437.0,0.013913]
[1721312850503,0.93610004,64438.0,64437.0,0.013913]
[1721312850999,0.62572504,64438.0,64437.0,0.013913]
[1721312851482,0.93610004,64438.0,64437.0,0.013913]
[1721312852463,0.93510004,64438.0,64437.0,0.000913]
[1721312852693,0.94310004,64438.0,64437.0,0.001913]
[1721312853412,0.94310004,64438.0,64437.0,0.000913]
[1721312854218,1.34778504,64438.0,64437.0,0.000913]
[1721312854421,1.35578504,64438.0,64437.0,0.001913]
[1721312854820,1.36478504,64438.0,64437.0,0.002913]
[1721312855520,1.35578504,64438.0,64437.0,0.001913]
[1721312855739,1.26147504,64438.0,64437.0,0.001913]
[1721312855975,1.27047504,64438.0,64437.0,0.002913]
[1721312856592,1.27047504,64438.0,64437.0,0.001913]
[1721312856593,1.25447504,64438.0,64437.0,0.001913]
[1721312857508,1.26247504,64438.0,64437.0,0.002913]
[1721312857745,1.26247504,64438.0,64437.0,0.001913]
[1721312857746,0.94410004,64438.0,64437.0,0.001913]
[1721312858221,0.95210004,64438.0,64437.0,0.002913]
[1721312860758,1.26247504,64438.0,64437.0,0.002913]
[1721312860970,0.95210004,64438.0,64437.0,0.002913]
[1721312861475,1.35768504,64438.0,64437.0,0.002913]
[1721312862121,0.95210004,64438.0,64437.0,0.002913]
[1721312862582,1.26247504,64438.0,64437.0,0.002913]
[1721312864138,1.33547504,64438.0,64437.0,0.002913]
[1721312865252,1.64585004,64438.0,64437.0,0.002913]
[1721312865553,1.33547504,64438.0,64437.0,0.002913]
[1721312865772,2.21060678,64438.0,64437.0,0.00182471]
[1721312865993,2.30431769,64438.0,64437.0,0.00182471]
[1721312866236,2.30431769,64438.0,64437.0,0.00078113]
[1721312867392,0.93534304,64418.0,64417.0,0.000913]
[1721312867883,0.93534304,64418.0,64417.0,0.00608353]
[1721312868322,0.93534304,64418.0,64417.0,0.000913]